bitfinex/quotes_BTCUSD_20250522
["timestamp","ask_amount","ask_price","bid_price","bid_amount"]
[1747886145989,0.00115268,111760.0,111750.0,0.98711877]
[1747886146872,0.00115268,111760.0,111750.0,0.97878113]
[1747886147429,0.00115268,111760.0,111750.0,0.98078113]
[1747886147665,0.00115268,111760.0,111750.0,0.98378113]
[1747886147886,0.18010758,111760.0,111750.0,0.16944556]
[1747886148082,0.18793118,111750.0,111740.0,0.0718]
[1747886148243,0.18793118,111750.0,111740.0,0.53712513]
[1747886148244,0.19687908,111750.0,111740.0,0.53712513]
[1747886148447,0.1968786,111750.0,111740.0,0.87712537]
[1747886148636,0.1968786,111750.0,111740.0,0.88607423]
[1747886148834,0.01789588,111750.0,111740.0,0.87712537]
[1747886149069,0.01726593,111750.0,111740.0,0.89502317]
[1747886149477,0.00831811,111750.0,111740.0,0.98456873]
[1747886149855,0.00831811,111750.0,111740.0,0.62558317]
[1747886150076,0.00831811,111750.0,111740.0,0.98356873]
[1747886150268,0.00931811,111750.0,111740.0,0.98756873]
[1747886150703,0.00931811,111750.0,111740.0,0.71912873]
[1747886151041,0.00931811,111750.0,111740.0,0.99156873]
[1747886151226,0.001,111750.0,111740.0,0.99156873]
[1747886152566,0.001,111750.0,111740.0,1.34052132]
[1747886154754,0.001,111750.0,111740.0,1.35506217]
[1747886155215,0.001,111750.0,111740.0,1.34052132]
[1747886155855,0.001,111750.0,111740.0,0.99156873]
[1747886156061,0.05,111800.0,111790.0,0.58980687]
[1747886156307,0.03471475,111840.0,111830.0,0.55466834]
[1747886156525,0.05259607,111840.0,111830.0,0.21466834]
[1747886156745,0.24930548,111840.0,111830.0,0.19678494]
[1747886156967,0.04301882,111840.0,111830.0,0.6442139]
[1747886157174,0.04301882,111840.0,111830.0,0.7064139]
[1747886157381,0.04352797,111840.0,111830.0,0.35747232]
[1747886157614,0.04352797,111840.0,111830.0,0.390084]
[1747886157816,0.01235234,111840.0,111830.0,0.3664139]
[1747886158029,0.01235234,111840.0,111830.0,0.41464485]
[1747886158236,0.01235234,111840.0,111830.0,1.03158967]
[1747886158451,0.01235234,111840.0,111830.0,0.68304485]
[1747886159336,0.01535234,111840.0,111830.0,0.41464485]
[1747886159538,0.01535234,111840.0,111830.0,1.02300485]
[1747886159894,0.01235234,111840.0,111830.0,1.02300485]
[1747886160332,0.00404827,111840.0,111830.0,1.02300485]
[1747886160852,0.00404827,111840.0,111830.0,0.9747739]
[1747886161050,0.00404827,111840.0,111830.0,1.34317975]
[1747886162238,0.00404827,111840.0,111830.0,1.34717975]
[1747886162823,0.00396357,111840.0,111830.0,1.34717975]
[1747886163018,0.00396357,111840.0,111830.0,1.34185957]
[1747886163228,0.00396357,111840.0,111830.0,1.32731872]
[1747886163473,0.00396357,111840.0,111830.0,1.33231872]
[1747886163872,0.00396357,111840.0,111830.0,0.71895872]
[1747886164070,0.00396357,111840.0,111830.0,0.98723872]
[1747886164246,0.00396357,111840.0,111830.0,0.99223872]
[1747886164676,0.00396357,111840.0,111830.0,1.33223872]
[1747886164880,0.00396357,111840.0,111830.0,1.82859872]
[1747886165672,0.00396357,111840.0,111830.0,1.82459872]
[1747886165873,0.01220305,111840.0,111830.0,1.82459872]
[1747886166066,0.01220305,111840.0,111830.0,1.82759872]
[1747886166271,0.01220305,111840.0,111830.0,1.82259872]
[1747886166776,0.01220305,111840.0,111830.0,1.82759872]
[1747886166971,0.01220305,111840.0,111830.0,2.25033957]
[1747886167283,0.01220305,111840.0,111830.0,2.24233957]
[1747886167469,0.00496357,111840.0,111830.0,2.24833957]
[1747886167694,0.00496357,111840.0,111830.0,3.68823057]
[1747886167901,0.00496357,111840.0,111830.0,1.83159872]
[1747886168183,0.00496357,111840.0,111830.0,2.0173121]
[1747886168389,0.00496357,111840.0,111830.0,1.9665161]
[1747886168581,0.00496357,111840.0,111830.0,1.8304459]
[1747886169636,0.01321337,111840.0,111830.0,1.8304459]
[1747886171415,0.01321337,111840.0,111830.0,2.25187275]
[1747886171803,0.01321337,111840.0,111830.0,1.8304459]
[1747886172387,0.01321337,111840.0,111830.0,1.8294459]
[1747886174179,0.01321337,111840.0,111830.0,2.0709839]
[1747886174515,0.01321337,111840.0,111830.0,1.8292059]
[1747886174859,0.01321337,111840.0,111830.0,1.0648059]
[1747886175074,0.01321337,111840.0,111830.0,0.7248059]
[1747886175272,0.01321337,111840.0,111830.0,1.4892059]
[1747886175498,0.22780418,111840.0,111830.0,0.2177266]
[1747886175658,0.01321337,111840.0,111830.0,0.31621374]
[1747886175858,0.01321337,111840.0,111830.0,0.66475856]
[1747886176276,0.01321337,111840.0,111830.0,0.93291856]
[1747886176611,0.01221337,111840.0,111830.0,0.92691856]
[1747886176907,0.19104026,111840.0,111830.0,0.90603524]
[1747886177051,0.03009469,111840.0,111830.0,0.92391864]
[1747886177252,0.04797649,111840.0,111830.0,0.92691872]
[1747886177451,0.03903555,111840.0,111830.0,0.9358603]
[1747886177659,0.23574488,111840.0,111830.0,0.91797714]
[1747886177896,0.22680426,111840.0,111830.0,0.28316]
[1747886178088,0.21786292,111840.0,111830.0,0.47988676]
[1747886178294,0.2268041,111840.0,111830.0,0.48882858]
[1747886178496,0.2268041,111840.0,111830.0,0.28316]
[1747886178695,0.2178634,111840.0,111830.0,0.20278494]
[1747886178931,0.20892214,111840.0,111830.0,0.47988692]
[1747886179152,0.24473148,111840.0,111830.0,0.015]
[1747886179352,0.2089227,111840.0,111830.0,0.015]
[1747886179553,0.1999816,111840.0,111830.0,0.015]
[1747886179861,0.1999816,111840.0,111830.0,0.00918826]
[1747886180099,0.1999816,111840.0,111830.0,0.0181304]
[1747886180298,0.01221337,111840.0,111830.0,0.21508112]
[1747886180497,0.02115415,111840.0,111830.0,0.21508112]
[1747886180784,0.2268045,111840.0,111830.0,0.00047064]
[1747886181105,0.01221337,111840.0,111830.0,0.47433882]
[1747886181292,0.01221337,111840.0,111830.0,0.6221662]
[1747886181422,0.01221337,111840.0,111830.0,1.8903662]
[1747886181645,0.01221337,111840.0,111830.0,1.9621662]
[1747886181850,0.01221337,111840.0,111830.0,2.2952662]
[1747886182044,0.01221337,111840.0,111830.0,2.0270662]
[1747886182251,0.01221337,111840.0,111830.0,2.2952662]
[1747886182648,0.01221337,111840.0,111830.0,2.03538416]
[1747886182979,0.01221337,111840.0,111830.0,2.79986416]
[1747886184122,0.01221337,111840.0,111830.0,2.81026139]
[1747886184347,0.00893974,111860.0,111850.0,0.2061022]
[1747886184548,0.00909244,111860.0,111850.0,1.2168114]
[1747886184779,0.00909244,111860.0,111850.0,0.89032958]
[1747886184936,0.00909244,111860.0,111850.0,0.37787504]
[1747886185147,0.00909244,111860.0,111850.0,0.92257504]
[1747886185595,0.01009244,111860.0,111850.0,0.91616572]
[1747886185971,0.18888736,111860.0,111850.0,0.54053996]
[1747886186179,0.20576564,111860.0,111850.0,0.48258048]
[1747886186375,0.21570506,111860.0,111850.0,0.46869996]
[1747886186574,0.21570506,111860.0,111850.0,0.01231796]
[1747886186575,0.19676636,111860.0,111850.0,0.01231796]
[1747886186790,0.34861192,111860.0,111850.0,0.00269888]
[1747886186993,0.18775144,111850.0,111840.0,0.01244421]
[1747886187333,0.19669174,111850.0,111840.0,0.01244421]
[1747886187624,0.00894078,111840.0,111830.0,1.46535645]
[1747886187865,0.20564963,111840.0,111830.0,1.26863064]
[1747886188075,0.19670885,111840.0,111830.0,1.00047064]
[1747886188291,0.19670917,111840.0,111830.0,1.26863064]
[1747886188638,0.19670917,111840.0,111830.0,1.27757278]
[1747886188827,0.19670917,111840.0,111830.0,1.00047064]
[1747886189031,0.19670901,111840.0,111830.0,1.44747352]
[1747886189240,0.19670901,111840.0,111830.0,1.26863064]
[1747886189649,0.19670901,111840.0,111830.0,1.45641566]
[1747886189852,0.20565027,111840.0,111830.0,1.46535764]
[1747886190161,0.18775112,111850.0,111840.0,0.18823887]
[1747886190368,0.1966915,111850.0,111840.0,0.00941198]
[1747886190603,0.20563148,111850.0,111840.0,0.19718005]
[1747886190808,0.20563148,111850.0,111830.0,1.79336778]
[1747886191008,0.21457202,111850.0,111840.0,0.18776815]
[1747886191216,0.00894078,111840.0,111830.0,1.79336778]
[1747886191415,0.00894078,111840.0,111830.0,1.79236778]
[1747886192021,0.001,111850.0,111840.0,0.19670901]
[1747886192223,0.001,111850.0,111840.0,0.29519535]
[1747886192426,0.03776072,111850.0,111840.0,0.18776807]
[1747886192655,0.03776072,111850.0,111830.0,1.79136778]
[1747886192656,0.0089407,111840.0,111830.0,1.87215]
[1747886192836,0.0089407,111840.0,111830.0,1.82281032]
[1747886193042,0.0089407,111840.0,111830.0,1.8228104]
[1747886193222,0.18776759,111840.0,111830.0,1.00894214]
[1747886193429,0.20564971,111840.0,111830.0,1.2682]
[1747886193631,0.21459097,111840.0,111830.0,1.2682]
[1747886193832,0.21559097,111840.0,111830.0,1.2682]
[1747886194071,0.21559097,111840.0,111830.0,1.001]
[1747886194284,0.19770933,111840.0,111830.0,1.2692]
[1747886194434,0.17828375,111840.0,111830.0,1.2692]
[1747886194633,0.16934257,111840.0,111830.0,1.001]
[1747886194862,0.35800348,111840.0,111830.0,1.001]
[1747886195029,0.35900348,111840.0,111830.0,1.001]
[1747886195235,0.33872898,111840.0,111830.0,1.001]
[1747886195752,0.64402335,111840.0,111830.0,0.93068758]
[1747886196009,0.64302335,111840.0,111830.0,0.52098758]
[1747886196205,0.18785221,111790.0,111780.0,0.07179717]
[1747886196436,0.01789124,111780.0,111770.0,0.23645524]
[1747886196579,0.01789124,111780.0,111770.0,0.2682]
[1747886196580,0.1968146,111780.0,111770.0,0.2682]
[1747886196979,0.0089455,111780.0,111770.0,0.44713889]
[1747886197182,0.20513716,111790.0,111770.0,0.44713889]
[1747886197471,0.2052277,111790.0,111780.0,0.20576082]
[1747886197719,0.21417288,111790.0,111780.0,0.18786894]
[1747886198176,0.00843103,111790.0,111780.0,0.54694648]
[1747886198377,0.02632051,111790.0,111780.0,0.54694648]
[1747886198581,0.02632051,111790.0,111780.0,0.5380009]
[1747886198866,0.01789108,111780.0,111770.0,0.21948567]
[1747886199038,0.01789108,111780.0,111770.0,0.59516423]
[1747886199240,0.00834025,111780.0,111770.0,0.63801053]
[1747886199443,0.00834025,111780.0,111770.0,0.97801053]
[1747886199646,9.078e-05,111790.0,111780.0,0.54576034]
[1747886199897,0.00109078,111790.0,111780.0,0.97724607]
[1747886200038,9.078e-05,111790.0,111780.0,0.77010307]
[1747886200241,9.078e-05,111790.0,111780.0,0.98214507]
[1747886200735,9.078e-05,111790.0,111780.0,0.77010307]
[1747886201174,9.078e-05,111790.0,111780.0,0.6993059]
[1747886201649,9.078e-05,111790.0,111780.0,1.5821529]
[1747886201916,9.078e-05,111790.0,111780.0,0.6993059]
[1747886202160,9.078e-05,111790.0,111780.0,1.1190559]
[1747886202402,0.34907232,111840.0,111830.0,0.2056685]
[1747886202652,0.17918613,111840.0,111830.0,0.27751923]
[1747886202885,0.3580131,111840.0,111830.0,0.06290915]
[1747886203045,0.38483608,111840.0,111830.0,0.00050915]
[1747886203188,0.17024543,111840.0,111830.0,0.20617749]
[1747886203393,0.001,111840.0,111830.0,0.26857749]
[1747886203595,0.01594062,111840.0,111830.0,0.27851915]
[1747886204340,0.013,111840.0,111830.0,0.06390915]
[1747886204559,0.013,111840.0,111830.0,0.00150915]
[1747886204560,0.28150618,111840.0,111830.0,0.00150915]
[1747886204735,0.38320235,111840.0,111830.0,0.00150915]
[1747886204937,0.73252502,111840.0,111830.0,0.00150915]
[1747886205211,0.1968089,111790.0,111770.0,0.26728315]
[1747886205379,0.1968089,111790.0,111780.0,0.44716288]
[1747886205533,0.19679651,111790.0,111780.0,0.46505476]
[1747886205763,0.21468671,111790.0,111780.0,0.45610886]
[1747886205962,0.0089447,111790.0,111780.0,0.47400058]
[1747886206170,0.20574169,111790.0,111780.0,0.53510058]
[1747886206376,0.20574169,111790.0,111780.0,0.29934]
[1747886206594,0.21468703,111790.0,111780.0,0.27733868]
[1747886206794,0.21768703,111790.0,111780.0,0.27733876]
[1747886206997,0.20874169,111790.0,111780.0,0.2862849]
[1747886207197,0.20574169,111790.0,111780.0,0.0180449]
[1747886207401,0.20574169,111790.0,111780.0,0.0001527]
[1747886207606,0.20179699,111790.0,111780.0,0.0011527]
[1747886207768,0.19485205,111790.0,111780.0,0.0011527]
[1747886208388,0.28439761,111790.0,111780.0,0.0001527]
[1747886210582,0.21274217,111790.0,111780.0,0.0001527]
[1747886210796,0.20379723,111790.0,111780.0,0.0001527]
[1747886211570,0.20379723,111790.0,111780.0,0.0306527]
[1747886211772,0.20379627,111790.0,111780.0,0.51890164]
[1747886212022,0.20379627,111790.0,111780.0,0.50995558]
[1747886212232,0.2031651,111790.0,111780.0,0.51890164]
[1747886212424,0.21211012,111790.0,111780.0,0.3310327]
[1747886212580,0.2210553,111790.0,111780.0,0.33997876]
[1747886212782,0.23000056,111790.0,111780.0,0.3005327]
[1747886213195,0.01531345,111790.0,111780.0,0.54573918]
[1747886213446,0.01531345,111790.0,111780.0,0.97528474]
[1747886213795,0.19422032,111790.0,111780.0,0.96633916]
[1747886214093,0.007,111790.0,111780.0,0.97528474]
[1747886214295,0.21274161,111790.0,111780.0,0.0627527]
[1747886214543,0.22168679,111790.0,111780.0,0.3310727]
[1747886214796,0.22168735,111790.0,111780.0,0.3310727]
[1747886215439,0.21274249,111790.0,111780.0,0.3310727]
[1747886216389,0.22106599,111790.0,111780.0,0.3005727]
[1747886216547,0.22106599,111790.0,111780.0,0.3311727]
[1747886217524,0.22106599,111790.0,111780.0,0.2684727]
[1747886217732,0.20317571,111790.0,111780.0,0.2684727]
[1747886217867,0.19423037,111790.0,111780.0,0.2684727]
[1747886218065,0.1789549,111760.0,111750.0,0.04995125]
[1747886218263,0.20593519,111770.0,111760.0,0.00894774]
[1747886218465,0.18790192,111760.0,111750.0,9.078e-05]
[1747886218664,0.19684982,111760.0,111750.0,9.078e-05]
[1747886218856,0.28639538,111760.0,111750.0,9.078e-05]
[1747886219052,0.29471888,111760.0,111750.0,9.078e-05]
[1747886219294,0.20617332,111760.0,111750.0,0.00209078]
[1747886219526,0.1972255,111760.0,111750.0,0.19001007]
[1747886219712,0.0093235,111760.0,111750.0,0.20790627]
[1747886219921,0.0083235,111760.0,111750.0,0.20590635]
[1747886220152,0.21488173,111770.0,111750.0,0.20590635]
[1747886220357,0.19884902,111760.0,111750.0,0.20690643]
[1747886220561,0.002,111760.0,111750.0,0.48717457]
[1747886220768,0.002,111760.0,111750.0,0.91672013]
[1747886220958,0.002,111760.0,111750.0,0.97188195]
[1747886221186,0.002,111760.0,111750.0,1.30420195]
[1747886221619,0.002,111760.0,111750.0,1.31744896]
[1747886221829,0.002,111760.0,111750.0,1.32578349]
[1747886222040,0.000157,111770.0,111760.0,0.20579716]
[1747886222243,0.000157,111770.0,111760.0,0.35894272]
[1747886222444,0.001157,111770.0,111760.0,0.35894272]
[1747886222647,0.001157,111770.0,111760.0,0.88998672]
[1747886222859,0.001157,111770.0,111760.0,0.69894272]
[1747886223063,0.000157,111770.0,111760.0,1.03375907]
[1747886223264,0.000157,111770.0,111760.0,0.84471725]
[1747886223460,0.001157,111770.0,111760.0,1.17319907]
[1747886224242,0.001157,111770.0,111760.0,0.71327725]
[1747886224453,0.001157,111770.0,111760.0,0.85071725]
[1747886224635,0.001157,111770.0,111760.0,0.71327725]
[1747886226212,0.001157,111770.0,111760.0,1.23097725]
[1747886226398,0.001157,111770.0,111760.0,0.97442425]
[1747886226537,0.001157,111770.0,111760.0,0.71327725]
[1747886227235,0.001157,111770.0,111760.0,1.60928625]
[1747886227436,0.001157,111770.0,111760.0,1.38711625]
[1747886227766,0.001157,111770.0,111760.0,1.68741707]
[1747886228045,0.001157,111770.0,111760.0,0.71327725]
[1747886228693,0.001157,111770.0,111760.0,0.37823156]
[1747886228902,0.001157,111770.0,111760.0,0.64655156]
[1747886229074,0.001157,111770.0,111760.0,0.664446]
[1747886229275,0.001157,111770.0,111760.0,0.65054451]
[1747886229488,0.000157,111770.0,111760.0,0.64854451]
[1747886229672,0.000157,111770.0,111760.0,0.95274451]
[1747886229975,0.001157,111770.0,111760.0,0.98574451]
[1747886230117,0.001157,111770.0,111760.0,0.98874451]
[1747886230762,0.001157,111770.0,111760.0,0.72042451]
[1747886230945,0.001157,111770.0,111760.0,1.59041451]
[1747886232116,0.001157,111770.0,111760.0,1.58207998]
[1747886232700,0.001157,111770.0,111760.0,2.68922083]
[1747886233669,0.08014036,111800.0,111760.0,2.68922083]
[1747886233670,0.08014036,111800.0,111790.0,0.54574193]
[1747886233881,0.08908418,111800.0,111790.0,1.69998931]
[1747886234093,0.26797521,111800.0,111790.0,0.86437213]
[1747886234296,0.26797521,111800.0,111790.0,0.88226193]
[1747886234450,0.28586429,111800.0,111790.0,0.67652]
[1747886234656,0.17892288,111780.0,111770.0,0.34]
[1747886234898,0.21468687,111790.0,111780.0,0.19681447]
[1747886235100,0.2140848,111790.0,111780.0,0.12499883]
[1747886235527,0.2140848,111790.0,111780.0,0.13394497]
[1747886235681,0.19681428,111780.0,111770.0,0.53692299]
[1747886235879,0.19681428,111780.0,111770.0,0.53792331]
[1747886236118,0.20514002,111790.0,111780.0,0.00894614]
[1747886236318,0.20613954,111790.0,111780.0,0.18886902]
[1747886236518,0.22402966,111790.0,111780.0,0.197815]
[1747886236729,0.22402966,111790.0,111770.0,0.60941078]
[1747886236730,0.19681476,111780.0,111770.0,0.60941078]
[1747886236925,0.20576034,111780.0,111770.0,0.26941078]
[1747886237200,0.19781476,111780.0,111770.0,0.27041078]
[1747886237540,0.20615795,111780.0,111770.0,0.27041078]
[1747886237745,0.19721213,111780.0,111770.0,0.27041078]
[1747886237948,0.39085486,111780.0,111770.0,0.00209078]
[1747886238174,0.74853668,111780.0,111770.0,0.00209078]
[1747886238379,0.21480207,111730.0,111720.0,0.03072935]
[1747886238598,0.20524162,111740.0,111730.0,0.00895006]
[1747886238770,0.20524162,111740.0,111720.0,0.29920203]
[1747886238771,0.20585185,111730.0,111720.0,0.29920203]
[1747886238977,0.20585185,111730.0,111720.0,0.31710351]
[1747886239531,0.20585185,111730.0,111720.0,0.5050731]
[1747886239663,0.20585177,111730.0,111720.0,0.03088203]
[1747886239874,0.19690267,111730.0,111720.0,0.03088203]
[1747886240265,0.19690267,111730.0,111720.0,0.00115268]
[1747886240266,0.19790267,111730.0,111720.0,0.00115268]
[1747886240462,0.18895293,111730.0,111720.0,0.00115268]
[1747886240697,0.18000295,111730.0,111720.0,0.00115268]
[1747886241108,0.21673626,111730.0,111720.0,0.00115268]
[1747886241312,0.33234851,111730.0,111720.0,0.00115268]
[1747886241757,0.3406917,111730.0,111720.0,0.00115268]
[1747886241926,0.18934614,111730.0,111720.0,0.00115268]
[1747886242334,0.18834614,111730.0,111720.0,0.00015268]
[1747886242543,0.19034614,111730.0,111720.0,0.00015268]
[1747886242680,0.18934614,111730.0,111720.0,0.00015268]
[1747886242878,0.18100295,111730.0,111720.0,0.00015268]
[1747886243162,0.004,111730.0,111720.0,0.60842351]
[1747886243659,0.20985177,111730.0,111720.0,0.34910362]
[1747886243866,0.20985177,111730.0,111720.0,0.55497429]
[1747886243867,0.004,111730.0,111720.0,0.55497429]
[1747886244065,0.004,111730.0,111720.0,0.70751985]
[1747886244287,0.004,111730.0,111720.0,0.34015268]
[1747886244476,0.004,111730.0,111720.0,0.61750354]
[1747886244477,0.20985217,111730.0,111720.0,0.61750354]
[1747886244681,0.21880231,111730.0,111720.0,0.34015268]
[1747886244885,0.20090307,111730.0,111720.0,0.26855268]
[1747886245020,0.0129495,111730.0,111720.0,0.46547329]
[1747886245225,0.004,111730.0,111720.0,0.82337429]
[1747886245454,0.004,111730.0,111720.0,0.88627429]
[1747886245657,0.002,111730.0,111720.0,0.88627429]
[1747886245912,0.01194958,111730.0,111720.0,0.81442391]
[1747886246080,0.22257606,111730.0,111720.0,0.00015268]
[1747886246230,0.19990267,111730.0,111720.0,0.00015268]
[1747886246432,0.19790267,111730.0,111720.0,0.00015268]
[1747886247121,0.19790259,111730.0,111720.0,0.18812259]
[1747886247280,0.21580207,111730.0,111720.0,0.19707305]
[1747886247446,0.01889924,111730.0,111720.0,0.20602343]
[1747886247648,0.0099495,111730.0,111720.0,0.20602343]
[1747886247846,0.21478435,111740.0,111730.0,0.00894998]
[1747886248076,0.19688591,111740.0,111730.0,0.01790012]
[1747886248520,0.19688591,111740.0,111730.0,0.19690307]
[1747886248698,0.20583509,111740.0,111730.0,0.19690307]
[1747886248911,0.19690203,111730.0,111720.0,0.60117281]
[1747886249114,0.21480255,111730.0,111720.0,0.60855268]
[1747886249464,0.20585241,111730.0,111720.0,0.61750354]
[1747886249663,0.19193745,111740.0,111720.0,0.81442327]
[1747886249887,0.0089495,111730.0,111720.0,0.80547257]
[1747886250089,0.20783437,111740.0,111730.0,0.19690251]
[1747886250315,0.20783437,111740.0,111730.0,0.47429265]
[1747886250491,0.20783437,111740.0,111730.0,0.49219205]
[1747886250690,0.01094878,111740.0,111730.0,0.83219165]
[1747886250909,0.002,111740.0,111730.0,0.81429273]
[1747886251080,0.002,111740.0,111730.0,0.88814255]
[1747886251280,0.22371255,111750.0,111740.0,0.00894926]
[1747886251864,0.21476473,111750.0,111740.0,0.0178986]
[1747886251989,0.0089479,111750.0,111740.0,0.18793627]
[1747886252196,0.18795293,111730.0,111720.0,0.26859268]
[1747886252423,0.19690283,111730.0,111720.0,0.26859268]
[1747886252776,0.19690219,111730.0,111720.0,0.80551329]
[1747886252989,0.01234319,111750.0,111740.0,0.53688521]
[1747886253160,0.01534319,111750.0,111740.0,0.87997399]
[1747886253319,0.01534319,111750.0,111740.0,0.96951955]
[1747886253537,0.01134319,111750.0,111740.0,0.96951955]
[1747886253930,0.003,111750.0,111740.0,0.96951955]
[1747886254130,0.003,111750.0,111740.0,0.95162175]
[1747886254387,0.003,111750.0,111740.0,0.96951955]
[1747886254559,0.19986695,111750.0,111740.0,0.77263474]
[1747886254926,0.20581581,111750.0,111740.0,0.34]
[1747886255107,0.20581581,111750.0,111740.0,0.60844]
[1747886255454,0.19686775,111750.0,111740.0,0.60844]
[1747886255892,0.19786775,111750.0,111740.0,0.60844]
[1747886256480,0.20086775,111750.0,111740.0,0.60844]
[1747886256883,0.20086775,111750.0,111740.0,0.26844]
[1747886257098,0.19690219,111730.0,111720.0,0.03990362]
[1747886257292,0.19690211,111730.0,111720.0,0.30834362]
[1747886257485,0.19690211,111730.0,111720.0,0.50526399]
[1747886257686,0.19690211,111730.0,111720.0,0.85421453]
[1747886257889,0.64192005,111780.0,111770.0,0.84873794]
[1747886258113,0.73146561,111780.0,111770.0,0.84873794]
[1747886258344,0.72146561,111780.0,111770.0,0.84873794]
[1747886258464,0.72246561,111780.0,111770.0,0.84873794]
[1747886258681,0.81198712,111780.0,111770.0,0.84873794]
[1747886258905,0.72246561,111780.0,111770.0,0.84873794]
[1747886259112,0.69126561,111780.0,111770.0,0.81753794]
[1747886259312,0.68726561,111780.0,111770.0,0.81213794]
[1747886259558,0.98726561,111780.0,111770.0,0.81213794]
[1747886260118,0.70880646,111780.0,111770.0,0.81213794]
[1747886260321,0.71180646,111780.0,111770.0,0.81213794]
[1747886260449,0.70180646,111780.0,111770.0,0.81213794]
[1747886260850,0.63400929,111780.0,111770.0,0.81113794]
[1747886261084,0.91244929,111780.0,111770.0,0.81113794]
[1747886261274,0.92744929,111780.0,111770.0,0.81213794]
[1747886261687,1.41628929,111780.0,111770.0,0.81213794]
[1747886261862,1.76552997,111780.0,111770.0,0.81213794]
[1747886262063,1.73052997,111780.0,111770.0,0.81113794]
[1747886262268,1.73198912,111780.0,111770.0,0.81213794]
[1747886262473,0.77430844,111780.0,111770.0,0.81213794]
[1747886262719,0.77430844,111780.0,111770.0,0.87553794]
[1747886262720,0.28546844,111780.0,111770.0,0.87553794]
[1747886262927,0.21926594,111840.0,111820.0,0.18780166]
[1747886263135,0.21926594,111840.0,111810.0,0.68078374]
[1747886263136,0.20568626,111820.0,111810.0,0.68078374]
[1747886263270,0.21462872,111820.0,111810.0,0.85965861]
[1747886263472,0.2056869,111820.0,111810.0,0.33184]
[1747886263677,0.19674436,111820.0,111810.0,0.33184]
[1747886263904,0.19723528,111830.0,111820.0,0.25280166]
[1747886264057,0.28678116,111830.0,111820.0,0.065]
[1747886264262,0.19674404,111820.0,111810.0,0.2863274]
[1747886264460,0.00894238,111820.0,111810.0,0.52980131]
[1747886264664,0.2146292,111820.0,111810.0,0.34198366]
[1747886264875,0.2146292,111820.0,111810.0,0.33304]
[1747886265084,0.2146292,111820.0,111810.0,0.34198374]
[1747886265892,0.19774436,111820.0,111810.0,0.0646]
[1747886266103,0.19774436,111820.0,111800.0,0.52783494]
[1747886266104,0.18781845,111810.0,111800.0,0.78733087]
[1747886266302,0.18781845,111810.0,111800.0,0.84666353]
[1747886266303,0.01788644,111810.0,111800.0,0.84666353]
[1747886266530,0.01788636,111810.0,111800.0,0.84666353]
[1747886266931,0.01788636,111810.0,111800.0,0.87766353]
[1747886267116,0.02682938,111810.0,111800.0,0.87766353]
[1747886267314,0.21563,111820.0,111810.0,0.0616]
[1747886267521,0.2146292,111820.0,111810.0,0.24941861]
[1747886267772,0.2146292,111820.0,111810.0,0.25836227]
[1747886267984,0.2056869,111820.0,111810.0,0.0616]
[1747886268285,0.19674436,111820.0,111810.0,0.0616]
[1747886268890,0.2783473,111820.0,111810.0,0.031]
[1747886269266,0.18781845,111810.0,111800.0,0.30076]
[1747886269951,0.19676195,111810.0,111800.0,0.30076]
[1747886270143,0.20570569,111810.0,111800.0,0.33246]
[1747886270352,0.19676219,111810.0,111800.0,0.33246]
[1747886270552,0.28730775,111810.0,111800.0,0.0334]
[1747886270732,0.29561328,111810.0,111800.0,0.0334]
[1747886270931,0.29561328,111810.0,111800.0,0.0344]
[1747886271356,0.29561328,111810.0,111800.0,0.002]
[1747886275357,0.56393328,111810.0,111800.0,0.002]
[1747886275925,0.08954556,111810.0,111800.0,0.002]
[1747886276125,0.26842043,111810.0,111800.0,0.002]
[1747886276566,0.28630775,111810.0,111800.0,0.002]
[1747886277668,0.28630775,111810.0,111800.0,0.0338]
[1747886278239,0.19676219,111810.0,111800.0,0.0338]
[1747886278440,0.19676179,111810.0,111800.0,0.0638]
[1747886278664,0.19676179,111810.0,111800.0,0.33212]
[1747886278841,0.20570553,111810.0,111800.0,0.33212]
[1747886279062,0.21464823,111810.0,111800.0,0.33212]
[1747886279271,0.19676195,111810.0,111800.0,0.33212]
[1747886279470,0.18781853,111810.0,111800.0,0.33212]
[1747886280411,0.18781829,111810.0,111800.0,0.33212]
[1747886280570,0.20570553,111810.0,111800.0,0.33212]
[1747886281165,0.19676211,111810.0,111800.0,0.27032]
[1747886281807,0.19676211,111810.0,111800.0,0.30032]
[1747886282628,0.00050884,111830.0,111820.0,0.01788548]
[1747886282829,0.00050884,111830.0,111820.0,0.34848992]
[1747886283009,0.00050884,111830.0,111820.0,0.0622]
[1747886283010,0.20617686,111830.0,111820.0,0.0622]
[1747886283226,0.20617678,111830.0,111820.0,0.0622]
[1747886283454,0.21511884,111830.0,111820.0,0.0622]
[1747886283799,0.22406098,111830.0,111820.0,0.0622]
[1747886283966,0.21511948,111830.0,111820.0,0.0622]
[1747886284173,0.20617782,111830.0,111820.0,0.0622]
[1747886284472,0.20617694,111830.0,111820.0,0.0622]
[1747886284672,0.00250884,111830.0,111820.0,0.2589442]
[1747886284873,0.19329322,111830.0,111820.0,0.2599442]
[1747886285099,0.20223488,111830.0,111820.0,0.25994436]
[1747886285646,0.00550884,111830.0,111820.0,0.70737492]
[1747886285996,0.00550884,111830.0,111820.0,0.97569492]
[1747886289113,0.01382349,111830.0,111820.0,1.38389492]
[1747886289325,0.01082349,111830.0,111820.0,0.97469492]
[1747886289749,0.01182349,111830.0,111820.0,0.97569492]
[1747886290322,0.01182349,111830.0,111820.0,1.30218223]
[1747886290531,0.00982349,111830.0,111820.0,0.97569492]
[1747886290842,0.18866637,111830.0,111820.0,0.96775254]
[1747886291022,0.19760787,111830.0,111820.0,0.97669508]
[1747886291245,0.00982349,111830.0,111820.0,0.98559746]
[1747886292842,0.00982349,111830.0,111820.0,0.98659746]
[1747886294018,0.00982349,111830.0,111820.0,0.98655746]
[1747886294769,0.00982349,111830.0,111820.0,0.99488987]
[1747886295552,0.00982349,111830.0,111820.0,1.40308987]
[1747886297653,0.00982349,111830.0,111820.0,1.74411803]
[1747886298255,0.00982349,111830.0,111820.0,1.41763072]
[1747886298458,0.00982349,111830.0,111820.0,1.40308987]
[1747886299035,0.00982349,111830.0,111820.0,1.41763072]
[1747886299239,0.00982349,111830.0,111820.0,1.74411803]
[1747886299634,0.00982349,111830.0,111820.0,1.41763072]
[1747886299831,0.00982349,111830.0,111820.0,1.40308987]
[1747886301715,0.00982349,111830.0,111820.0,1.36727971]
[1747886301917,0.20654945,111830.0,111820.0,1.17947797]
[1747886302094,0.20654929,111830.0,111820.0,1.36727971]
[1747886302298,0.21549191,111830.0,111820.0,0.07353241]
[1747886302528,0.57070754,111830.0,111820.0,0.01133241]
[1747886302748,0.33376579,111830.0,111820.0,0.003]
[1747886302923,0.67479395,111830.0,111820.0,0.003]
[1747886303267,0.68807815,111830.0,111820.0,0.003]
[1747886303668,0.19676179,111810.0,111800.0,0.355818]
[1747886303987,0.19676179,111810.0,111800.0,0.087618]